[Event "Titled Tuesday Blitz March 01 Late 2022"]
[White "Demidov, Mikhail"]
[Black "Gracia Alvarez, Gerardo Antonio"]
[WhiteFideId "4197143"]
[BlackFideId "5109124"]
[WhiteElo "2525"]
[BlackElo "2139"]
[Result "1-0"]
[Round "01"]
[TimeControl "180+1"]
[Date "2022.03.01"]
[WhiteClock "0:00:11"]
[BlackClock "0:00:29"]

1. Nf3 {[%clk 0:02:22]}  Nf6 {[%clk 0:02:59]} 2. g3 {[%clk 0:02:23]}  g6 {[%clk 0:02:59]} 3. b3 {[%clk 0:02:23]}  Bg7 {[%clk 0:03:00]} 4. Bb2 {[%clk 0:02:24]}  O-O {[%clk 0:03:00]} 5. Bg2 {[%clk 0:02:24]}  d6 {[%clk 0:03:00]} 6. d4 {[%clk 0:02:24]}  Nbd7 {[%clk 0:03:00]} 7. O-O {[%clk 0:02:23]}  e5 {[%clk 0:03:00]} 8. dxe5 {[%clk 0:02:14]}  Ng4 {[%clk 0:03:00]} 9. Qd2 {[%clk 0:02:15]}  Ngxe5 {[%clk 0:02:58]} 10. c4 {[%clk 0:02:14]}  Nxf3+ {[%clk 0:02:56]} 11. exf3 {[%clk 0:02:15]}  Bxb2 {[%clk 0:02:54]} 12. Qxb2 {[%clk 0:02:16]}  Qf6 {[%clk 0:02:54]} 13. Nc3 {[%clk 0:02:16]}  c6 {[%clk 0:02:53]} 14. Qd2 {[%clk 0:02:12]}  Rd8 {[%clk 0:02:35]} 15. Ne4 {[%clk 0:02:10]}  Qe7 {[%clk 0:02:34]} 16. Qxd6 {[%clk 0:02:01]}  Qxd6 {[%clk 0:02:33]} 17. Nxd6 {[%clk 0:02:01]}  Nc5 {[%clk 0:02:32]} 18. Rad1 {[%clk 0:01:54]}  a5 {[%clk 0:02:26]} 19. f4 {[%clk 0:01:50]}  Bg4 {[%clk 0:02:23]} 20. f3 {[%clk 0:01:31]}  Be6 {[%clk 0:02:21]} 21. Ne4 {[%clk 0:01:25]}  Nd3 {[%clk 0:02:21]} 22. Nc3 {[%clk 0:01:20]}  Rd7 {[%clk 0:02:09]} 23. Rd2 {[%clk 0:01:19]}  Rad8 {[%clk 0:02:08]} 24. Rfd1 {[%clk 0:01:18]}  f5 {[%clk 0:01:57]} 25. Bf1 {[%clk 0:01:12]}  Nc5 {[%clk 0:01:57]} 26. Rxd7 {[%clk 0:01:12]}  Rxd7 {[%clk 0:01:58]} 27. Rxd7 {[%clk 0:01:12]}  Bxd7 {[%clk 0:01:57]} 28. Kf2 {[%clk 0:01:12]}  Kf7 {[%clk 0:01:56]} 29. Ke3 {[%clk 0:01:13]}  Ke7 {[%clk 0:01:53]} 30. Be2 {[%clk 0:01:12]}  h5 {[%clk 0:01:49]} 31. Bd1 {[%clk 0:01:11]}  Kd6 {[%clk 0:01:48]} 32. h3 {[%clk 0:01:07]}  Ne6 {[%clk 0:01:43]} 33. a3 {[%clk 0:01:05]}  Kc5 {[%clk 0:01:25]} 34. g4 {[%clk 0:01:00]}  Ng7 {[%clk 0:01:21]} 35. Na4+ {[%clk 0:00:57]}  Kd6 {[%clk 0:01:21]} 36. c5+ {[%clk 0:00:52]}  Kd5 {[%clk 0:01:14]} 37. Nb6+ {[%clk 0:00:42]}  Ke6 {[%clk 0:01:14]} 38. Nc4 {[%clk 0:00:42]}  Kd5 {[%clk 0:01:10]} 39. Nxa5 {[%clk 0:00:38]}  Kxc5 {[%clk 0:01:07]} 40. Nxb7+ {[%clk 0:00:38]}  Kb6 {[%clk 0:00:58]} 41. Nd6 {[%clk 0:00:38]}  Be6 {[%clk 0:00:57]} 42. Kd4 {[%clk 0:00:33]}  Bd5 {[%clk 0:00:56]} 43. Ke5 {[%clk 0:00:30]}  fxg4 {[%clk 0:00:56]} 44. fxg4 {[%clk 0:00:30]}  hxg4 {[%clk 0:00:56]} 45. hxg4 {[%clk 0:00:26]}  Ne6 {[%clk 0:00:56]} 46. f5 {[%clk 0:00:25]}  gxf5 {[%clk 0:00:57]} 47. gxf5 {[%clk 0:00:26]}  Nc5 {[%clk 0:00:57]} 48. b4 {[%clk 0:00:24]}  Nd3+ {[%clk 0:00:55]} 49. Kd4 {[%clk 0:00:23]}  Nf2 {[%clk 0:00:53]} 50. Be2 {[%clk 0:00:22]}  Nh3 {[%clk 0:00:52]} 51. f6 {[%clk 0:00:22]}  Ng5 {[%clk 0:00:52]} 52. Bh5 {[%clk 0:00:20]}  Ne6+ {[%clk 0:00:50]} 53. Ke5 {[%clk 0:00:20]}  Nf8 {[%clk 0:00:51]} 54. Bf7 {[%clk 0:00:17]}  Bf3 {[%clk 0:00:40]} 55. Be8 {[%clk 0:00:16]}  Bg4 {[%clk 0:00:38]} 56. Nc4+ {[%clk 0:00:14]}  Kc7 {[%clk 0:00:38]} 57. Na5 {[%clk 0:00:14]}  Bf3 {[%clk 0:00:33]} 58. Nb3 {[%clk 0:00:13]}  Kd8 {[%clk 0:00:31]} 59. Nd4 {[%clk 0:00:11]}  Bd5 {[%clk 0:00:28]} 60. Bxc6 {[%clk 0:00:11]}  Ng6+ {[%clk 0:00:29]} 61. Kxd5 {[%clk 0:00:11]} 1-0


[Site "https://www.chess.com"]

[Event "Titled Tuesday Blitz March 01 Late 2022"]
[White "Desideri, Ricardo Maruchi"]
[Black "Janaszak, Dawid"]
[WhiteFideId "2110440"]
[BlackFideId "1119206"]
[WhiteElo "1945"]
[BlackElo "2199"]
[Result "1-0"]
[Round "01"]
[TimeControl "180+1"]
[Date "2022.03.02"]
[WhiteClock "0:00:08"]
[BlackClock "0:00:53"]

1. e4 {[%clk 0:03:00]}  c5 {[%clk 0:02:57]} 2. Nf3 {[%clk 0:03:00]}  Nc6 {[%clk 0:02:56]} 3. d4 {[%clk 0:03:00]}  cxd4 {[%clk 0:02:56]} 4. Nxd4 {[%clk 0:03:00]}  g6 {[%clk 0:02:56]} 5. Nc3 {[%clk 0:03:00]}  Bg7 {[%clk 0:02:56]} 6. Be3 {[%clk 0:03:01]}  Nf6 {[%clk 0:02:56]} 7. Bc4 {[%clk 0:03:01]}  O-O {[%clk 0:02:56]} 8. Bb3 {[%clk 0:03:01]}  Re8 {[%clk 0:02:57]} 9. h3 {[%clk 0:03:02]}  d6 {[%clk 0:02:55]} 10. f4 {[%clk 0:02:58]}  Na5 {[%clk 0:02:48]} 11. O-O {[%clk 0:02:54]}  Nxb3 {[%clk 0:02:42]} 12. axb3 {[%clk 0:02:53]}  b6 {[%clk 0:02:38]} 13. e5 {[%clk 0:02:42]}  dxe5 {[%clk 0:02:33]} 14. fxe5 {[%clk 0:02:41]}  Nd5 {[%clk 0:02:33]} 15. Qf3 {[%clk 0:02:40]}  Nxe3 {[%clk 0:02:33]} 16. Qxe3 {[%clk 0:02:10]}  Bb7 {[%clk 0:02:33]} 17. Qf4 {[%clk 0:02:04]}  Rf8 {[%clk 0:02:24]} 18. Rad1 {[%clk 0:01:59]}  Qc7 {[%clk 0:02:24]} 19. Rde1 {[%clk 0:01:35]}  e6 {[%clk 0:02:20]} 20. Ndb5 {[%clk 0:01:28]}  Qc5+ {[%clk 0:02:16]} 21. Rf2 {[%clk 0:01:24]}  f6 {[%clk 0:01:56]} 22. Qc4 {[%clk 0:00:32]}  f5 {[%clk 0:01:31]} 23. Qxe6+ {[%clk 0:00:31]}  Kh8 {[%clk 0:01:31]} 24. Nd6 {[%clk 0:00:27]}  Qc7 {[%clk 0:01:23]} 25. Ncb5 {[%clk 0:00:24]}  Qc5 {[%clk 0:01:13]} 26. b4 {[%clk 0:00:20]}  Qc6 {[%clk 0:01:07]} 27. Nf7+ {[%clk 0:00:19]}  Rxf7 {[%clk 0:01:07]} 28. Qxf7 {[%clk 0:00:16]}  Rf8 {[%clk 0:01:04]} 29. Qc7 {[%clk 0:00:11]}  Qxb5 {[%clk 0:00:58]} 30. Qxb7 {[%clk 0:00:11]}  Qxb4 {[%clk 0:00:59]} 31. Rfe2 {[%clk 0:00:10]}  Qxb2 {[%clk 0:00:57]} 32. e6 {[%clk 0:00:10]}  Qd4+ {[%clk 0:00:51]} 33. Kh1 {[%clk 0:00:09]}  f4 {[%clk 0:00:52]} 34. e7 {[%clk 0:00:08]}  Re8 {[%clk 0:00:53]} 35. Qc6 {[%clk 0:00:08]} 1-0


[Site "https://www.chess.com"]

[Event "Titled Tuesday Blitz March 01 Late 2022"]
[White "Dias, Joao Batista"]
[Black "Kanyamarala, Tarun"]
[WhiteFideId "2108240"]
[BlackFideId "45004714"]
[WhiteElo "1898"]
[BlackElo "2144"]
[Result "0-1"]
[Round "01"]
[TimeControl "180+1"]
[Date "2022.03.02"]
[WhiteClock "0:00:44"]
[BlackClock "0:00:18"]

1. e4 {[%clk 0:02:55]}  c5 {[%clk 0:02:55]} 2. f4 {[%clk 0:02:53]}  d5 {[%clk 0:02:52]} 3. exd5 {[%clk 0:02:53]}  Nf6 {[%clk 0:02:50]} 4. Nf3 {[%clk 0:02:52]}  Nxd5 {[%clk 0:02:49]} 5. d4 {[%clk 0:02:52]}  cxd4 {[%clk 0:02:45]} 6. Nxd4 {[%clk 0:02:51]}  g6 {[%clk 0:02:43]} 7. Bc4 {[%clk 0:02:47]}  Bg7 {[%clk 0:02:42]} 8. O-O {[%clk 0:02:43]}  O-O {[%clk 0:02:38]} 9. c3 {[%clk 0:02:42]}  Nc6 {[%clk 0:02:28]} 10. Nxc6 {[%clk 0:02:41]}  bxc6 {[%clk 0:02:28]} 11. Na3 {[%clk 0:02:39]}  Be6 {[%clk 0:02:22]} 12. Qe2 {[%clk 0:02:32]}  Rb8 {[%clk 0:02:14]} 13. Rb1 {[%clk 0:02:16]}  Qa5 {[%clk 0:01:47]} 14. Bxd5 {[%clk 0:02:11]}  cxd5 {[%clk 0:01:40]} 15. f5 {[%clk 0:02:01]}  Bxf5 {[%clk 0:01:38]} 16. Rxf5 {[%clk 0:01:59]}  gxf5 {[%clk 0:01:39]} 17. Qxe7 {[%clk 0:01:53]}  Rfe8 {[%clk 0:01:36]} 18. Qh4 {[%clk 0:01:52]}  Qxa3 {[%clk 0:01:13]} 19. bxa3 {[%clk 0:01:44]}  Rxb1 {[%clk 0:01:13]} 20. Qf4 {[%clk 0:01:36]}  Re1+ {[%clk 0:01:09]} 21. Kf2 {[%clk 0:01:35]}  Rexc1 {[%clk 0:01:07]} 22. Qd6 {[%clk 0:01:32]}  Rb2+ {[%clk 0:00:56]} 23. Ke3 {[%clk 0:01:24]}  Rxc3+ {[%clk 0:00:51]} 24. Kf4 {[%clk 0:01:23]}  Rf2+ {[%clk 0:00:45]} 25. Kg5 {[%clk 0:01:19]}  Rxg2+ {[%clk 0:00:43]} 26. Kf4 {[%clk 0:01:18]}  Rg6 {[%clk 0:00:37]} 27. Qd8+ {[%clk 0:01:13]}  Bf8 {[%clk 0:00:36]} 28. Qxd5 {[%clk 0:01:13]}  Rxa3 {[%clk 0:00:33]} 29. Qxf5 {[%clk 0:01:05]}  Bd6+ {[%clk 0:00:30]} 30. Ke4 {[%clk 0:01:03]}  Rxa2 {[%clk 0:00:24]} 31. h4 {[%clk 0:01:02]}  Ra4+ {[%clk 0:00:22]} 32. Kd3 {[%clk 0:01:00]}  Rxh4 {[%clk 0:00:22]} 33. Qc8+ {[%clk 0:00:58]}  Bf8 {[%clk 0:00:21]} 34. Qb8 {[%clk 0:00:55]}  a6 {[%clk 0:00:20]} 35. Kc3 {[%clk 0:00:54]}  Re4 {[%clk 0:00:20]} 36. Kd3 {[%clk 0:00:53]}  Reg4 {[%clk 0:00:20]} 37. Kc3 {[%clk 0:00:53]}  h5 {[%clk 0:00:19]} 38. Kd3 {[%clk 0:00:52]}  h4 {[%clk 0:00:19]} 39. Ke3 {[%clk 0:00:52]}  h3 {[%clk 0:00:19]} 40. Ke2 {[%clk 0:00:50]}  h2 {[%clk 0:00:19]} 41. Qa8 {[%clk 0:00:47]}  Rg2+ {[%clk 0:00:18]} 42. Kd3 {[%clk 0:00:44]}  h1=Q {[%clk 0:00:18]} 0-1


[Site "https://www.chess.com"]

[Event "Titled Tuesday Blitz March 01 Late 2022"]
[White "Fus, Jakub"]
[Black "Srebrnic, Marko"]
[WhiteFideId "1193023"]
[BlackFideId "14603616"]
[WhiteElo "2111"]
[BlackElo "2340"]
[Result "1-0"]
[Round "01"]
[TimeControl "180+1"]
[Date "2022.03.02"]
[WhiteClock "0:00:18"]
[BlackClock "0:00:03"]

1. Nf3 {[%clk 0:03:00]}  Nf6 {[%clk 0:02:59]} 2. c4 {[%clk 0:03:00]}  g6 {[%clk 0:02:58]} 3. Nc3 {[%clk 0:03:00]}  Bg7 {[%clk 0:02:58]} 4. e4 {[%clk 0:03:00]}  d6 {[%clk 0:02:59]} 5. d4 {[%clk 0:02:59]}  O-O {[%clk 0:03:00]} 6. Be2 {[%clk 0:03:00]}  e5 {[%clk 0:03:00]} 7. d5 {[%clk 0:02:58]}  a5 {[%clk 0:03:00]} 8. Bg5 {[%clk 0:02:58]}  Na6 {[%clk 0:02:58]} 9. Nd2 {[%clk 0:02:56]}  Qe8 {[%clk 0:02:58]} 10. O-O {[%clk 0:02:55]}  Kh8 {[%clk 0:02:56]} 11. a3 {[%clk 0:02:53]}  Bd7 {[%clk 0:02:48]} 12. b3 {[%clk 0:02:36]}  Ng8 {[%clk 0:02:47]} 13. Rb1 {[%clk 0:02:32]}  Nc5 {[%clk 0:02:38]} 14. Qc2 {[%clk 0:02:27]}  Bh6 {[%clk 0:02:34]} 15. Bxh6 {[%clk 0:02:26]}  Nxh6 {[%clk 0:02:35]} 16. b4 {[%clk 0:02:26]}  axb4 {[%clk 0:02:35]} 17. axb4 {[%clk 0:02:27]}  Na4 {[%clk 0:02:35]} 18. Nb5 {[%clk 0:02:27]}  Bxb5 {[%clk 0:02:24]} 19. cxb5 {[%clk 0:02:28]}  Qd7 {[%clk 0:02:18]} 20. Rfc1 {[%clk 0:02:22]}  Rfc8 {[%clk 0:02:15]} 21. Nc4 {[%clk 0:02:15]}  Nb6 {[%clk 0:02:11]} 22. Na5 {[%clk 0:02:12]}  Rab8 {[%clk 0:02:05]} 23. Qd2 {[%clk 0:02:07]}  Kg7 {[%clk 0:02:04]} 24. Rc3 {[%clk 0:02:05]}  f5 {[%clk 0:02:01]} 25. f3 {[%clk 0:01:58]}  Ng8 {[%clk 0:01:25]} 26. Rbc1 {[%clk 0:01:56]}  Nf6 {[%clk 0:01:25]} 27. Qc2 {[%clk 0:01:55]}  Ne8 {[%clk 0:01:26]} 28. Bd3 {[%clk 0:01:40]}  f4 {[%clk 0:01:19]} 29. Ra3 {[%clk 0:01:31]}  g5 {[%clk 0:01:09]} 30. Bf1 {[%clk 0:01:26]}  h5 {[%clk 0:01:07]} 31. h3 {[%clk 0:01:24]}  g4 {[%clk 0:01:02]} 32. hxg4 {[%clk 0:01:23]}  hxg4 {[%clk 0:01:03]} 33. fxg4 {[%clk 0:01:24]}  Qxg4 {[%clk 0:01:02]} 34. Qf2 {[%clk 0:01:10]}  Nd7 {[%clk 0:00:53]} 35. Rcc3 {[%clk 0:01:09]}  Ndf6 {[%clk 0:00:37]} 36. Rg3 {[%clk 0:01:06]}  fxg3 {[%clk 0:00:25]} 37. Rxg3 {[%clk 0:01:06]}  Ra8 {[%clk 0:00:17]} 38. Be2 {[%clk 0:01:02]}  Qxg3 {[%clk 0:00:15]} 39. Qxg3+ {[%clk 0:01:03]}  Kf7 {[%clk 0:00:13]} 40. Qh4 {[%clk 0:00:48]}  b6 {[%clk 0:00:12]} 41. Bh5+ {[%clk 0:00:44]}  Kf8 {[%clk 0:00:10]} 42. Nc6 {[%clk 0:00:43]}  Ra1+ {[%clk 0:00:10]} 43. Kh2 {[%clk 0:00:41]}  Rca8 {[%clk 0:00:08]} 44. Bg6 {[%clk 0:00:37]}  Kg7 {[%clk 0:00:06]} 45. Ne7 {[%clk 0:00:31]}  R8a2 {[%clk 0:00:01]} 46. Bxe8 {[%clk 0:00:31]}  Nxe8 {[%clk 0:00:01]} 47. Nf5+ {[%clk 0:00:31]}  Kf7 {[%clk 0:00:02]} 48. Qe7+ {[%clk 0:00:30]}  Kg6 {[%clk 0:00:01]} 49. Qxe8+ {[%clk 0:00:31]}  Kg5 {[%clk 0:00:01]} 50. Qg8+ {[%clk 0:00:17]}  Kf4 {[%clk 0:00:02]} 51. Qg3+ {[%clk 0:00:17]}  Kxe4 {[%clk 0:00:03]} 52. Qf3# {[%clk 0:00:18]} 1-0


[Site "https://www.chess.com"]

[Event "Titled Tuesday Blitz March 01 Late 2022"]
[White "Gareyev, Timur"]
[Black "Lopez Del Alamo, Antonio"]
[WhiteFideId "14200937"]
[BlackFideId "2227339"]
[WhiteElo "2586"]
[BlackElo "2082"]
[Result "1-0"]
[Round "01"]
[TimeControl "180+1"]
[Date "2022.03.02"]
[WhiteClock "0:00:32"]
[BlackClock "0:01:22"]

1. c4 {[%clk 0:02:49]}  Nf6 {[%clk 0:02:55]} 2. Nc3 {[%clk 0:02:46]}  g6 {[%clk 0:02:53]} 3. e4 {[%clk 0:01:27]}  d6 {[%clk 0:02:53]} 4. d4 {[%clk 0:01:11]}  Bg7 {[%clk 0:02:46]} 5. Be2 {[%clk 0:01:11]}  O-O {[%clk 0:02:46]} 6. Be3 {[%clk 0:01:10]}  e5 {[%clk 0:02:40]} 7. d5 {[%clk 0:01:09]}  c6 {[%clk 0:02:39]} 8. g4 {[%clk 0:01:06]}  cxd5 {[%clk 0:02:38]} 9. cxd5 {[%clk 0:01:07]}  b5 {[%clk 0:02:14]} 10. g5 {[%clk 0:01:00]}  Nh5 {[%clk 0:02:13]} 11. Bxh5 {[%clk 0:00:59]}  gxh5 {[%clk 0:02:12]} 12. Qxh5 {[%clk 0:00:59]}  b4 {[%clk 0:02:12]} 13. Nce2 {[%clk 0:00:59]}  f5 {[%clk 0:02:02]} 14. gxf6 {[%clk 0:00:57]}  Qxf6 {[%clk 0:02:01]} 15. Nh3 {[%clk 0:00:50]}  Nd7 {[%clk 0:01:32]} 16. Rg1 {[%clk 0:00:47]}  Kh8 {[%clk 0:01:23]} 17. Ng5 {[%clk 0:00:44]}  h6 {[%clk 0:01:22]} 18. Ne6 {[%clk 0:00:43]}  Rg8 {[%clk 0:01:22]} 19. Bg5 {[%clk 0:00:32]} 1-0


[Site "https://www.chess.com"]

[Event "Titled Tuesday Blitz March 01 Late 2022"]
[White "Glavina, Pablo"]
[Black "Babazada, Khazar"]
[WhiteFideId "100234"]
[BlackFideId "13413554"]
[WhiteElo "2369"]
[BlackElo "2418"]
[Result "0-1"]
[Round "01"]
[TimeControl "180+1"]
[Date "2022.03.01"]
[WhiteClock "0:00:04"]
[BlackClock "0:01:15"]

1. e4 {[%clk 0:02:57]}  Nf6 {[%clk 0:02:58]} 2. e5 {[%clk 0:02:56]}  Nd5 {[%clk 0:02:59]} 3. c4 {[%clk 0:02:57]}  Nb6 {[%clk 0:02:56]} 4. d4 {[%clk 0:02:58]}  d6 {[%clk 0:02:55]} 5. exd6 {[%clk 0:02:59]}  cxd6 {[%clk 0:02:54]} 6. Be3 {[%clk 0:02:59]}  g6 {[%clk 0:02:54]} 7. Nc3 {[%clk 0:02:58]}  Bg7 {[%clk 0:02:54]} 8. Rc1 {[%clk 0:02:59]}  O-O {[%clk 0:02:53]} 9. b3 {[%clk 0:03:00]}  Bf5 {[%clk 0:02:52]} 10. Nf3 {[%clk 0:03:00]}  d5 {[%clk 0:02:51]} 11. c5 {[%clk 0:02:58]}  Nc8 {[%clk 0:02:51]} 12. Bd3 {[%clk 0:02:56]}  Bg4 {[%clk 0:02:50]} 13. h3 {[%clk 0:02:55]}  Bxf3 {[%clk 0:02:49]} 14. Qxf3 {[%clk 0:02:56]}  e6 {[%clk 0:02:50]} 15. O-O {[%clk 0:02:56]}  Nc6 {[%clk 0:02:48]} 16. Ne2 {[%clk 0:02:50]}  e5 {[%clk 0:02:48]} 17. Qg4 {[%clk 0:01:03]}  f5 {[%clk 0:02:46]} 18. Qg5 {[%clk 0:00:30]}  Bf6 {[%clk 0:02:32]} 19. Qg3 {[%clk 0:00:28]}  f4 {[%clk 0:02:32]} 20. Bxf4 {[%clk 0:00:26]}  exf4 {[%clk 0:02:31]} 21. Nxf4 {[%clk 0:00:27]}  Bh4 {[%clk 0:01:52]} 22. Qg4 {[%clk 0:00:27]}  Rxf4 {[%clk 0:01:52]} 23. Qxf4 {[%clk 0:00:25]}  Bg5 {[%clk 0:01:53]} 24. Qf3 {[%clk 0:00:23]}  Bxc1 {[%clk 0:01:51]} 25. Rxc1 {[%clk 0:00:23]}  N8e7 {[%clk 0:01:41]} 26. Qe3 {[%clk 0:00:20]}  Qf8 {[%clk 0:01:39]} 27. Re1 {[%clk 0:00:18]}  Qf7 {[%clk 0:01:39]} 28. g4 {[%clk 0:00:13]}  Rf8 {[%clk 0:01:38]} 29. Bf1 {[%clk 0:00:13]}  Qf4 {[%clk 0:01:38]} 30. a3 {[%clk 0:00:10]}  a5 {[%clk 0:01:33]} 31. b4 {[%clk 0:00:08]}  axb4 {[%clk 0:01:34]} 32. axb4 {[%clk 0:00:09]}  Qxe3 {[%clk 0:01:30]} 33. Rxe3 {[%clk 0:00:10]}  Kf7 {[%clk 0:01:27]} 34. Bg2 {[%clk 0:00:08]}  Nxd4 {[%clk 0:01:25]} 35. Kh2 {[%clk 0:00:06]}  Ra8 {[%clk 0:01:20]} 36. Rd3 {[%clk 0:00:04]}  Ndc6 {[%clk 0:01:19]} 37. Bxd5+ {[%clk 0:00:04]}  Nxd5 {[%clk 0:01:19]} 38. Rxd5 {[%clk 0:00:05]}  Ke6 {[%clk 0:01:19]} 39. Rd6+ {[%clk 0:00:04]}  Ke7 {[%clk 0:01:20]} 40. b5 {[%clk 0:00:05]}  Ne5 {[%clk 0:01:19]} 41. Rb6 {[%clk 0:00:05]}  Ra7 {[%clk 0:01:18]} 42. f4 {[%clk 0:00:04]}  Nc4 {[%clk 0:01:16]} 43. c6 {[%clk 0:00:05]}  Nxb6 {[%clk 0:01:15]} 44. c7 {[%clk 0:00:04]}  Kd7 {[%clk 0:01:15]} 0-1


[Site "https://www.chess.com"]

[Event "Titled Tuesday Blitz March 01 Late 2022"]
[White "Gledura, Benjamin"]
[Black "Martins, Carlos"]
[WhiteFideId "712779"]
[BlackFideId "2101688"]
[WhiteElo "2326"]
[BlackElo "2183"]
[Result "1-0"]
[Round "01"]
[TimeControl "180+1"]
[Date "2022.03.02"]
[WhiteClock "0:00:55"]
[BlackClock "0:00:02"]

1. d4 {[%clk 0:02:56]}  Nf6 {[%clk 0:02:58]} 2. b3 {[%clk 0:02:54]}  d5 {[%clk 0:02:53]} 3. Bb2 {[%clk 0:02:55]}  Bf5 {[%clk 0:02:51]} 4. Nf3 {[%clk 0:02:55]}  h6 {[%clk 0:02:50]} 5. e3 {[%clk 0:02:55]}  e6 {[%clk 0:02:50]} 6. Nbd2 {[%clk 0:02:56]}  Bd6 {[%clk 0:02:50]} 7. Be2 {[%clk 0:02:56]}  Nbd7 {[%clk 0:02:48]} 8. O-O {[%clk 0:02:56]}  O-O {[%clk 0:02:47]} 9. Ne5 {[%clk 0:02:57]}  Ne4 {[%clk 0:02:37]} 10. Nxe4 {[%clk 0:02:49]}  Bxe4 {[%clk 0:02:36]} 11. f4 {[%clk 0:02:47]}  f6 {[%clk 0:02:32]} 12. Nd3 {[%clk 0:02:42]}  b6 {[%clk 0:02:28]} 13. Nf2 {[%clk 0:02:40]}  Bh7 {[%clk 0:02:25]} 14. c4 {[%clk 0:02:41]}  c6 {[%clk 0:02:21]} 15. Rc1 {[%clk 0:02:40]}  Rc8 {[%clk 0:02:20]} 16. Bf3 {[%clk 0:02:16]}  Kh8 {[%clk 0:02:13]} 17. g3 {[%clk 0:02:14]}  Qe7 {[%clk 0:02:12]} 18. e4 {[%clk 0:02:13]}  dxc4 {[%clk 0:01:58]} 19. bxc4 {[%clk 0:02:11]}  e5 {[%clk 0:01:58]} 20. c5 {[%clk 0:02:07]}  Bb8 {[%clk 0:01:51]} 21. cxb6 {[%clk 0:01:53]}  axb6 {[%clk 0:01:36]} 22. dxe5 {[%clk 0:01:53]}  fxe5 {[%clk 0:01:35]} 23. f5 {[%clk 0:01:53]}  Bg8 {[%clk 0:01:28]} 24. Qd3 {[%clk 0:01:50]}  Nc5 {[%clk 0:01:18]} 25. Qe3 {[%clk 0:01:50]}  Bxa2 {[%clk 0:01:06]} 26. Ng4 {[%clk 0:01:50]}  Qg5 {[%clk 0:00:54]} 27. Qa3 {[%clk 0:01:14]}  Bf7 {[%clk 0:00:38]} 28. Nxe5 {[%clk 0:01:13]}  Be8 {[%clk 0:00:22]} 29. Nc4 {[%clk 0:01:10]}  Bc7 {[%clk 0:00:14]} 30. Bd4 {[%clk 0:01:01]}  Bf7 {[%clk 0:00:09]} 31. Ne5 {[%clk 0:00:58]}  Be8 {[%clk 0:00:08]} 32. Bxc5 {[%clk 0:00:57]}  bxc5 {[%clk 0:00:05]} 33. Qxc5 {[%clk 0:00:57]}  Rg8 {[%clk 0:00:04]} 34. Kh1 {[%clk 0:00:56]}  Qf6 {[%clk 0:00:02]} 35. Nc4 {[%clk 0:00:55]} 1-0


[Site "https://www.chess.com"]

[Event "Titled Tuesday Blitz March 01 Late 2022"]
[White "Grigorov, Grigor"]
[Black "Jaskolka, Tomasz"]
[WhiteFideId "2907313"]
[BlackFideId "1170791"]
[WhiteElo "2510"]
[BlackElo "2054"]
[Result "0-1"]
[Round "01"]
[TimeControl "180+1"]
[Date "2022.03.01"]
[WhiteClock "0:01:50"]
[BlackClock "0:01:24"]

1. d4 {[%clk 0:02:59]}  Nf6 {[%clk 0:02:58]} 2. Nf3 {[%clk 0:02:58]}  e6 {[%clk 0:02:58]} 3. Bf4 {[%clk 0:02:57]}  d5 {[%clk 0:02:54]} 4. e3 {[%clk 0:02:57]}  c5 {[%clk 0:02:54]} 5. c3 {[%clk 0:02:55]}  Bd6 {[%clk 0:02:52]} 6. Bd3 {[%clk 0:02:54]}  Nc6 {[%clk 0:02:45]} 7. Bg3 {[%clk 0:02:50]}  O-O {[%clk 0:02:44]} 8. Nbd2 {[%clk 0:02:48]}  Qe7 {[%clk 0:02:28]} 9. Ne5 {[%clk 0:02:45]}  Nd7 {[%clk 0:02:27]} 10. Nxd7 {[%clk 0:02:36]}  Qxd7 {[%clk 0:02:27]} 11. Nf3 {[%clk 0:02:23]}  b6 {[%clk 0:02:26]} 12. Ne5 {[%clk 0:02:20]}  Bxe5 {[%clk 0:02:17]} 13. dxe5 {[%clk 0:02:18]}  Bb7 {[%clk 0:02:17]} 14. Qh5 {[%clk 0:02:15]}  g6 {[%clk 0:02:17]} 15. Qh6 {[%clk 0:02:12]}  d4 {[%clk 0:02:15]} 16. O-O-O {[%clk 0:02:07]}  Qd5 {[%clk 0:01:51]} 17. e4 {[%clk 0:01:56]}  Qxa2 {[%clk 0:01:45]} 18. Bh4 {[%clk 0:01:56]}  dxc3 {[%clk 0:01:39]} 19. bxc3 {[%clk 0:01:56]}  Na5 {[%clk 0:01:31]} 20. Bc2 {[%clk 0:01:50]}  Bxe4 {[%clk 0:01:24]} 0-1


[Site "https://www.chess.com"]

[Event "Titled Tuesday Blitz March 01 Late 2022"]
[White "Hardaway, Brewington"]
[Black "Lopez Perdomo, Juan David"]
[WhiteFideId "30941849"]
[BlackFideId "4405137"]
[WhiteElo "1768"]
[BlackElo "1997"]
[Result "1-0"]
[Round "01"]
[TimeControl "180+1"]
[Date "2022.03.02"]
[WhiteClock "0:01:31"]
[BlackClock "0:01:36"]

1. d4 {[%clk 0:03:00]}  c5 {[%clk 0:02:59]} 2. d5 {[%clk 0:03:00]}  e6 {[%clk 0:02:59]} 3. c4 {[%clk 0:02:58]}  exd5 {[%clk 0:02:58]} 4. cxd5 {[%clk 0:02:58]}  d6 {[%clk 0:02:59]} 5. Nc3 {[%clk 0:02:57]}  Nf6 {[%clk 0:02:59]} 6. e4 {[%clk 0:02:56]}  g6 {[%clk 0:03:00]} 7. Nf3 {[%clk 0:02:54]}  Bg7 {[%clk 0:03:00]} 8. Bd3 {[%clk 0:02:53]}  O-O {[%clk 0:03:00]} 9. h3 {[%clk 0:02:52]}  b5 {[%clk 0:03:00]} 10. Bxb5 {[%clk 0:02:52]}  Nxe4 {[%clk 0:03:00]} 11. O-O {[%clk 0:02:46]}  Bxc3 {[%clk 0:02:51]} 12. bxc3 {[%clk 0:02:40]}  Nxc3 {[%clk 0:02:52]} 13. Qb3 {[%clk 0:02:27]}  Nxb5 {[%clk 0:02:49]} 14. Qxb5 {[%clk 0:02:20]}  Ba6 {[%clk 0:02:33]} 15. Qb2 {[%clk 0:02:20]}  Qb6 {[%clk 0:02:20]} 16. Qc3 {[%clk 0:02:04]}  f6 {[%clk 0:01:47]} 17. Bh6 {[%clk 0:01:55]}  Rf7 {[%clk 0:01:46]} 18. Rfe1 {[%clk 0:01:53]}  Nd7 {[%clk 0:01:46]} 19. Rab1 {[%clk 0:01:49]}  Qc7 {[%clk 0:01:38]} 20. Re6 {[%clk 0:01:37]}  Ne5 {[%clk 0:01:37]} 21. Re1 {[%clk 0:01:36]}  Bc8 {[%clk 0:01:36]} 22. Re8+ {[%clk 0:01:31]} 1-0


[Site "https://www.chess.com"]